Cogmind - Beta 16 @@@ ROGUE MODE // 2025.10.25 @ 01:05:48 Player: mEkbOk Result: Destroyed by RA-N53(R) with Subdweller Machine Gun Performance ------------- Evolutions (0) 0 Regions Visited (3) 600 Robots Destroyed (23) 115 Value Destroyed (691) 691 Prototype IDs (0) 0 Alien Tech Used (0) 0 Bonus (0) 0 TOTAL SCORE: 1406 Bonus ------- None Cogmind --------- Core Integrity 0/250 Matter 294/300 Energy 248/250 System Corruption 0% Temperature Cool (0) Movement Walking (120) Location -10/Subcaves Parts ------- > --- POWER (1) -------- Ion Engine > --- PROPULSION (2) --- Aluminum Leg Aluminum Leg > --- UTILITY (2) ------ Machine Analyzer Tractor Beam > --- WEAPON (2) ------- Assault Rifle Assault Rifle > --- INVENTORY (5) ---- Ion Engine Improved Heat Sink Grenade Launcher Mining Laser Peak State ------------ > --- POWER ------------ Ion Engine > --- PROPULSION ------- Light Treads Light Treads > --- UTILITY ---------- Improved Heat Sink Core Shielding > --- WEAPON ----------- Particle Gun Assault Rifle > --- INVENTORY -------- Ion Engine Aluminum Leg Aluminum Leg Grenade Launcher [Rating: 10] Favorites ----------- Power Ion Engine Engine Ion Engine Propulsion Aluminum Leg Treads Light Treads Leg Aluminum Leg Utility Core Shielding Device Tractor Beam Storage Small Storage Unit Processor Targeting Computer Protection Core Shielding Weapon Assault Rifle Energy Gun Particle Gun Ballistic Gun Assault Rifle Launcher Grenade Launcher Build | -11 -10 -10 -10 ------- Run | Yrd Mat Min Sub Slots Evolved . | . . . . Power . | . . . . Propulsion . | . . . . Utility . | . . . . Weapon . | . . . . Parts Attached 30 | 5 21 3 1 Power 5 | 1 4 . . Engine 5 | 1 4 . . Core . | . . . . Reactor . | . . . . Propulsion 11 | 2 7 2 . Treads 4 | 2 2 . . Leg 7 | . 5 2 . Wheel . | . . . . Hover . | . . . . Flight . | . . . . Utility 8 | . 6 1 1 Device 3 | . 2 1 . Storage 1 | . 1 . . Processor 2 | . 1 . 1 Hackware . | . . . . Protection 2 | . 2 . . Artifact . | . . . . Weapon 6 | 2 4 . . Energy Gun 3 | 2 1 . . Energy Cannon . | . . . . Ballistic Gun 2 | . 2 . . Ballistic Cannon . | . . . . Launcher 1 | . 1 . . Special Weapon . | . . . . Impact Weapon . | . . . . Slashing Weapon . | . . . . Piercing Weapon . | . . . . Special Melee Weapon . | . . . . Unidentified Prototypes . | . . . . Parts Lost 6 | . 5 . 1 Power 2 | . 2 . . Propulsion 2 | . 2 . . Utility 1 | . . . 1 Weapon 1 | . 1 . . Highest Loss Streak 2 | . 2 . 1 To Critical Strikes . | . . . . Average Backups 4 | 3 4 4 3 Power . | . . 1 1 Propulsion . | 1 1 . . Utility 1 | . 1 1 . Weapon 1 | 1 1 1 2 Tool/Special . | . . . . Unused Backups 4 | . 3 . 1 Power 1 | . 1 . . Propulsion . | . . . . Utility 2 | . 2 . . Weapon 1 | . . . 1 Tool/Special . | . . . . Average Slot Usage (%) 99 | . 98 100 100 Engine 13 | . 13 14 14 Treads 9 | . 12 8 . Leg 17 | . 15 19 28 Device 7 | . 2 14 16 Storage 1 | . 1 . . Processor 7 | . 11 . 5 Protection 11 | . 11 14 5 Energy Gun 10 | . 16 . . Ballistic Gun 17 | . 10 28 28 Peak Build Rating 10 | 5 10 9 9 Average Rating 7 | 3 7 7 8 On Entrance 5 | . 5 9 7 Avg Prop Armor Cover (%) . | . . . . Naked Turns . | . . . . Heaviest Build 14 | 6 14 13 13 Greatest Support 40 | 40 40 40 20 Greatest Overweight (x) 1 | . 1 . . Average Overweight (x) . | . . . . Largest Inventory Capacity 8 | 5 8 5 5 Average Capacity 5 | 5 5 5 5 Most Carried 7 | 5 7 5 4 Average Carried 4 | 3 4 4 3 Final Capacity 5 | 5 5 5 5 Final Carried 5 | 5 5 4 4 Class Distribution -------------------- 62% | Scavenger-Mutant 37% | Mutant Dominant Class ---------------- Mutant | -10/Materials Scavenger-Mutant | -10/Mines Scavenger-Mutant | -10/Subcaves Resources | -11 -10 -10 -10 ----------- Run | Yrd Mat Min Sub Matter Collected 852 | 212 362 204 74 Remotely 158 | . . 84 74 Salvage Created 728 | . 448 171 109 Parts 39 | . 14 15 10 Haulers Intercepted . | . . . . Recyclers Shooed . | . . . . Parts Field Recycled . | . . . . Retrieved Matter . | . . . . Parts Self-Destructed 10 | . . . 10 Prevented . | . . . . Parts Restored . | . . . . Kills | -11 -10 -10 -10 ------- Run | Yrd Mat Min Sub Combat Hostiles Destroyed 23 | . 12 8 3 Guns 19 | . 8 8 3 AOE 3 | . 3 . . Classes Destroyed 3 | . 1 1 1 Swarmer 7 | . . 6 1 Grunt 14 | . 12 2 . Subdweller 2 | . . . 2 Best Kill Streak 3 | . 2 3 2 Combat Bots Only 3 | . 2 3 2 Max Kills in Single Turn 2 | . 2 2 1 Gunslinging 1 | . . 1 . Exploded 2 | . 2 . . Melee . | . . . . Uniques/NPCs Destroyed . | . . . . Combat | -11 -10 -10 -10 -------- Run | Yrd Mat Min Sub Hostile Shots Fired 154 | . 106 34 14 Missed 45 | . 27 11 7 Hits 109 | . 79 23 7 Projectile 109 | . 79 23 7 Critical Strikes 1 | . 1 . . Damage Taken 1397 | . 1038 215 144 Core 253 | . 145 46 62 Absorbed by Shields . | . . . . Redirected to Shielding 19 | . 19 . . Regen/Repaired (Parts) 99 | . 99 . . Core Remaining (%) 100 | 100 . . . Volleys Fired 80 | . 50 20 10 Largest 2 | . 2 2 2 Hottest 95 | . 95 40 40 Shots Fired 157 | . 97 40 20 Gun 152 | . 92 40 20 Cannon . | . . . . Launcher 5 | . 5 . . Special . | . . . . Kinetic 91 | . 31 40 20 Thermal 61 | . 61 . . Explosive 5 | . 5 . . Electromagnetic . | . . . . Robot Hit Streak 12 | . 12 6 6 Robot Miss Streak 2 | . 2 2 2 Penetration Max . | . . . . Secondary Targets 5 | . 1 4 . Max Gunslinging Chain 1 | . 1 1 . Shots Hit Robots 105 | . 67 25 13 Core Hits 41 | . 24 11 6 Critical Kills . | . . . . Critical Parts Destroyed . | . . . . Critical Strikes 3 | . 3 . . Burn 3 | . 3 . . Melee Attacks . | . . . . Impact . | . . . . Slashing . | . . . . Piercing . | . . . . Sneak Attacks . | . . . . Combat Hostiles . | . . . . Follow-up Attacks . | . . . . Damage Inflicted 1621 | . 1172 308 141 Guns 1286 | . 837 308 141 Cannons . | . . . . Explosions 335 | . 335 . . Melee . | . . . . Ramming . | . . . . Kinetic 699 | . 250 308 141 Thermal 587 | . 587 . . Explosive 335 | . 335 . . Electromagnetic . | . . . . Impact . | . . . . Slashing . | . . . . Piercing . | . . . . Highest Corruption . | . . . . Average Corruption . | . . . . Corruption Purged . | . . . . Corruption Blocked . | . . . . Overload Shots . | . . . . Overflow Damage 12 | . 12 . . Projectiles . | . . . . Explosions 12 | . 12 . . Melee . | . . . . Knockbacks . | . . . . Impact . | . . . . Kinetic . | . . . . Secondary . | . . . . Self-Inflicted Damage 19 | . 19 . . Shots 2 | . 2 . . Rammed . | . . . . Targets Rammed . | . . . . Kicked . | . . . . Crushed . | . . . . Highest Temperature 345 | . 345 . . Average Temperature 144 | . 144 . . Received Heat Transfer 615 | . 564 51 . Effects 6 | . 6 . . Energy Bleed 1 | . 1 . . Interference 5 | . 5 . . Siege Activations . | . . . . Martial Activations . | . . . . Shielding Activations . | . . . . Robots Disrupted . | . . . . Combat Hostiles . | . . . . Robots Corrupted . | . . . . Combat Hostiles . | . . . . Parts Fried . | . . . . Impact Corruptions . | . . . . Robots Melted 1 | . 1 . . Combat Hostiles 1 | . 1 . . Parts Melted 5 | . 5 . . Heat Transferred 1719 | . 1719 . . Parts Sabotaged . | . . . . Parts Stolen . | . . . . Parts Stripped . | . . . . Power Chain Reactions . | . . . . Alert | -11 -10 -10 -10 ------- Run | Yrd Mat Min Sub Maximum Alert Level . | . . . . Low Security (%) 100 | 100 100 100 . Level 1 . | . . . . Level 2 . | . . . . Level 3 . | . . . . Level 4 . | . . . . Level 5 . | . . . . High Security . | . . . . Max Security . | . . . . Peak Influence 102 | . 78 102 . Initial 17 | . . 17 . Average 20 | . 16 33 . Influence Increases 571 | . 332 209 30 Destroy 0b10 Robot/C 420 | . 240 160 20 Destroy Leader 90 | . 50 30 10 Allied During Kill 4 | . . 4 . Successful Hack 13 | . 13 . . Destroy Structure 29 | . 29 . . Lose Combat Pursuer 15 | . . 15 . Influence Decreases 571 | . 287 254 30 Entered New Map 28 | . . 28 . Time Decay 503 | . 257 226 20 Lost Part 40 | . 30 . 10 Squads Dispatched 4 | . 4 . . Investigation 1 | . 1 . . Extermination . | . . . . Reinforcement 3 | . 3 . . Assault . | . . . . Garrison . | . . . . Intercept . | . . . . Searches Triggered . | . . . . Construction Impeded . | . . . . Haulers Reinforced . | . . . . Active Scanning Responses . | . . . . Cargo Convoy Interrupts . | . . . . Stealth | -11 -10 -10 -10 --------- Run | Yrd Mat Min Sub Distress Signals 1 | . 1 . . Communications Jammed . | . . . . Distress Signals . | . . . . Times Spotted 38 | . 22 9 7 Peak Tracking Total 4 | . 4 3 3 Tactical Retreats 1 | . . 1 . Traps | -11 -10 -10 -10 ------- Run | Yrd Mat Min Sub Traps Triggered . | . . . . Indirectly . | . . . . Trap Hack Attempts . | . . . . Triggered . | . . . . Disarmed . | . . . . Reprogrammed . | . . . . Reused . | . . . . Traps Extracted . | . . . . Installed . | . . . . Triggered . | . . . . Machines | -11 -10 -10 -10 ---------- Run | Yrd Mat Min Sub Machines Disabled . | . . . . Max in Single Turn . | . . . . Machines Repaired . | . . . . Machines Dismantled . | . . . . Machines Sabotaged . | . . . . Overloaded Fab Kills . | . . . . Hacking | -11 -10 -10 -10 --------- Run | Yrd Mat Min Sub Machines Accessed 6 | . 6 . . Terminals 3 | . 3 . . Fabricators . | . . . . Repair Stations 1 | . 1 . . Recycling Units 2 | . 2 . . Scanalyzers . | . . . . Garrison Access . | . . . . Total Hacks 20 | . 20 . . Successful 13 | . 13 . . Failed 7 | . 7 . . Catastrophic 1 | . 1 . . Database Lockouts . | . . . . Manual 7 | . 7 . . Terminals 11 | . 11 . . Fabricators . | . . . . Repair Stations 4 | . 4 . . Recycling Units 5 | . 5 . . Scanalyzers . | . . . . Garrison Access . | . . . . Terminal Hacks 4 | . 4 . . Recycling Unit Index 1 | . 1 . . Reinforcement Status 1 | . 1 . . Hauler Manifests 1 | . 1 . . Zone Layout 1 | . 1 . . Fabricator Hacks . | . . . . Repair Station Hacks 3 | . 3 . . Scan Component 2 | . 2 . . Repair 1 | . 1 . . Recycling Unit Hacks 4 | . 4 . . Report Inventory 2 | . 2 . . Retrieve Components 2 | . 2 . . Scanalyzer . | . . . . Garrison Access Hacks . | . . . . Unauthorized Hacks 2 | . 2 . . Terminals 2 | . 2 . . Track 2 | . 2 . . Fabricators . | . . . . Repair Stations . | . . . . Recycling Units . | . . . . Scanalyzers . | . . . . Garrison Access . | . . . . Data Cores Recovered . | . . . . Used . | . . . . Hacking Detections 6 | . 6 . . Full Trace Events 2 | . 2 . . Feedback Events . | . . . . Feedback Blocked . | . . . . Robot Schematics Acquired . | . . . . Robots Built . | . . . . Authchips . | . . . . Time . | . . . . Total Robot Build Rating . | . . . . Part Schematics Acquired . | . . . . Parts Built . | . . . . Authchips . | . . . . Time . | . . . . Total Part Build Rating . | . . . . Part Studies Acquired . | . . . . Parts Repaired 1 | . 1 . . Time 26 | . 26 . . Parts Recycled . | . . . . Recycled Matter . | . . . . Retrieved Matter . | . . . . Retrieved Components 11 | . 11 . . Parts Scanalyzed . | . . . . Part Schematics Acquired . | . . . . Parts Damaged . | . . . . Bothacking | -11 -10 -10 -10 ------------ Run | Yrd Mat Min Sub Used RIF Installer . | . . . . Robots Hacked . | . . . . Non-combat . | . . . . Combat . | . . . . Robot Hacks Applied . | . . . . Relay Couplers Released . | . . . . Fabnet Peak Effective % . | . . . . Robots Rewired . | . . . . Allies Hacked . | . . . . Hacks Repelled . | . . . . Allies | -11 -10 -10 -10 -------- Run | Yrd Mat Min Sub Total Allies 1 | . . 1 . Largest Group 1 | . . 1 . Highest-Rated Group 31 | . . 31 . Highest-Rated Ally 31 | . . 31 . Total Orders . | . . . . Ally Attacks . | . . . . Total Damage . | . . . . Kills . | . . . . Allies Corrupted . | . . . . Allies Melted . | . . . . Intel | -11 -10 -10 -10 ------- Run | Yrd Mat Min Sub Active Infowar (turns) 96 | . . . 96 Machine Analysis 96 | . . . 96 Robot Analysis Total . | . . . . Derelict Logs Recovered 3 | . . 2 1 Drone Launches . | . . . . Drone Recoveries . | . . . . Exploration | -11 -10 -10 -10 ------------- Run | Yrd Mat Min Sub Turns Passed 2329 | 88 1370 620 251 Spaces Moved 1333 | 51 674 425 183 Core 7 | 7 . . . Treads 427 | 44 307 76 . Legs 899 | . 367 349 183 Wheels . | . . . . Hover . | . . . . Flight . | . . . . Fastest Speed 50 | 50 120 120 120 Average Speed 132 | 144 138 127 120 Slowest Speed 190 | 160 190 160 120 Overloaded Moves . | . . . . Propulsion Burnouts . | . . . . Robots Hopped . | . . . . Potential Cave-ins . | . . . . Cave-ins Triggered . | . . . . Exploration Rate (%) 51 | 4 87 95 20 Regions Visited 3 Branch Regions 2 Pre-discovered Areas 2 | . . 2 . Known Exits Taken . | . . . . Unknown Exits Taken 3 | 1 1 1 . Scrap Searched 2 | . . 2 . Spaces Dug . | . . . . Terrain Destroyed 28 | . 28 . . Melee . | . . . . Projectile . | . . . . AOE 28 | . 28 . . Terrain Rammed . | . . . . Walls Destroyed . | . . . . Machines Disabled . | . . . . Actions | -11 -10 -10 -10 --------- Run | Yrd Mat Min Sub Total 1739 | 65 1014 464 196 Wait 247 | . 233 14 . Move 1330 | 50 673 424 183 Hop . | . . . . Pick Up 28 | 10 16 1 1 Fast Attach 7 | . 7 . . Attach 13 | 5 7 . 1 Detach . | . . . . Swap 15 | . 11 3 1 Drop 19 | . 17 2 . Fire 80 | . 50 20 10 Melee . | . . . . Ram . | . . . . Kick . | . . . . Crush . | . . . . Escape Stasis . | . . . . Rewire . | . . . . Trap . | . . . . Miscellaneous . | . . . . Route ------- -11/Scrapyard -10/Materials (discovered 4 exits: [*Mat x3] / [*Min]) -10/Mines (discovered 3 exits: [*Mat x2] / [*Sub]) -10/Subcaves (discovered 1 exit: [*Mat]) History --------- Turn | Location | Event 12 | -11/Scrapyard | Discovered new exit (range 13) 89 | -11/Scrapyard | Entered Materials 305 | -10/Materials | Build established: Mutant 689 | -10/Materials | Derelicts attacked the area 937 | -10/Materials | Repaired Assault Rifle 1066 | -10/Materials | Core integrity fell below 50% 1127 | -10/Materials | Discovered new exit (range 10) 1192 | -10/Materials | Build established: Scavenger-Mutant 1241 | -10/Materials | Discovered new exit (range 15) 1342 | -10/Materials | Discovered new exit (range 5) 1413 | -10/Materials | Discovered new exit (range 13) 1459 | -10/Materials | Entered Mines 1642 | -10/Mines | Received a Mining Laser from a helpful Derelict 1691 | -10/Mines | Discovered new exit (range 12) 1863 | -10/Mines | Discovered new exit (range 13) 1950 | -10/Mines | Discovered new exit (range 9) 2079 | -10/Mines | Entered Subcaves 2080 | -10/Subcaves | Approached by a straggling Scientist 2160 | -10/Subcaves | Learned Materials stockpile data 2185 | -10/Subcaves | Core integrity fell below 20% 2316 | -10/Subcaves | Discovered new exit (range 10) 2330 | -10/Subcaves | A Subdweller sparked back to life 2330 | -10/Subcaves | A Subdweller sparked back to life 2330 | -10/Subcaves | A Subdweller sparked back to life 2330 | -10/Subcaves | Destroyed by RA-N53(R) with Subdweller Machine Gun Last Messages --------------- 02187_ Flight Unit fries itself beyond repair. 02188_ Acquired 6 matter. 02188_ Lgt. Ion Engine fries itself beyond repair. 02192_ Flight Unit fries itself beyond repair. 02195_ Lgt. Ion Engine fries itself beyond repair. 02196_ AG-NUS(R) destroyed. 02197_ Acquired 22 matter. 02197_ Subatomizers dissect the Sub. Monowheel. 02203_ Acquired 6 matter. 02203_ IZ-AIS(R) affixes Scrap Shield Fragment to Scrap Shield. 02205_ IZ-AIS(R) destroyed. 02206_ Acquired 6 matter. 02211_ Subatomizers dissect the Machine Analyzer. 02233_ Acquired Machine Analyzer. 02235_ Acquired 10 matter. 02235_ Subatomizers dissect the Lgt. Ion Engine. 02316_ EXIT=FOUND 02330_ BG-SEA(R) creaks and sparks as it begins to move. 02330_ RA-N53(R) creaks and sparks as it begins to move. 02330_ 8P-WE5(R) creaks and sparks as it begins to move. Map ----- +----------------------------------------------------+ | ##??????????????????????????????????????????? | | *%###???????????????????????????????????????????? | | # ##????????????????????????????????????????????? | | ## #????????????????????????????????????????????? | | # ########??????????????????????????????????????? | | # # ##?????????????????????????????????????? | | ???????????????????????????????????? | | ### #?????????????????????????????????? | | #??# ##??????????????????????????????????? | | # ##?## #????????????????????????????????????? | | # #### #?????????????????????????????????????? | | # #??????????????????????????????????????? | | &!! #???????????????????????????????????????? | | #%=& ##??????????????????????????????????????? | | #%## # #####??????????????????????????????????? | | #&#?### ##?????????????????????????????????? | | #!#????# #?????????????????????????????????? | | ###### # #?????????????????????????????????? | | # # # #????###??????????????????????????? | | #???## #???#####?#? #?????????????? | | ##?## #### # # # ##????????????? | | ## ### ###### ### ## ?????????????? | | ####?###????#